[Event "SixDays Budapest GM-A 10-2024"]
[Site "Budapest"]
[Date "2024.10.03"]
[Round "6.5"]
[White "Plat, Vojtech"]
[Black "Neverov, Valeriy"]
[Result "1/2-1/2"]
[ECO "B83"]
[WhiteElo "2483"]
[BlackElo "2412"]
[Annotator "TA"]
[PlyCount "179"]
[EventDate "2024.09.24"]
[EventType "tourn"]
[EventCountry "HUN"]
[SourceTitle "playchess.com"]
[Source "ChessBase"]
[SourceQuality "1"]
[TimeControl "5400+30"]

{[%evp 20,178,38,37,33,24,39,32,25,33,35,36,40,0,0,3,5,12,25,0,0,0,0,0,0,0,0,0,0,0,0,0,0,0,8,13,7,0,27,20,25,23,30,0,0,0,0,0,0,0,0,0,0,0,0,0,0,0,0,0,0,0,0,0,0,0,0,0,5,5,5,0,5,5,18,18,18,18,18,18,18,18,192,147,18,219,219,5,5,5,18,18,18,18,18,18,18,18,18,18,18,18,18,18,18,18,18,18,18,18,18,18,18,18,18,18,18,0,18,18,18,18,18,18,18,18,18,8,8,0,18,0,0,0,0,0,0,0,0,0,0,0,0,0,0,0,0,0,0,0,0,0,0,0,0,0,0,0,0,0,0]} 1. e4 {[%emt 0:02:19]} c5 {[%emt 0:00:01]} 2. Nf3 {[%emt 0:00:12]} d6 {[%emt 0:00:05]} 3. Nc3 {[%emt 0:00:07]} Nc6 {[%emt 0:02:59]} 4. d4 {[%emt 0:00:29]} cxd4 {[%emt 0:00:07]} 5. Nxd4 {[%emt 0:00:04]} Nf6 {[%emt 0:00:06]} 6. Be2 {[%emt 0:00:46]} e6 {[%emt 0:06:09]} 7. Be3 {[%emt 0:00:39]} Be7 {[%emt 0:01:14]} 8. O-O {[%emt 0:00:07]} O-O {[%emt 0:00:22]} 9. f4 {[%emt 0:00:06]} Qc7 {[%emt 0:00:54]} 10. Kh1 {[%emt 0:00:14]} Re8 {[%emt 0:03:37]} 11. Qe1 {[%emt 0:02:01]} Nxd4 {[%emt 0:01:48]} 12. Bxd4 {[%emt 0:00:14]} e5 {[%emt 0:00:02]} 13. fxe5 {[%emt 0:03:50]} dxe5 {[%emt 0:00:12] White is slightly better.} 14. Qg3 {[%emt 0:00:07]} Bd8 $1 {[%emt 0:00:14]} 15. Be3 {[%emt 0:00:35] [#] Threatens to win with Bh6.} Kh8 $1 {[%emt 0:04:55]} 16. Rad1 {[%emt 0:18:09] next Nb5 is good for White.} Be6 {[%emt 0:00:53]} 17. Bb5 {[%emt 0:04:16][%cal Be2b5,Bb5a4,Ba4b3][%mdl 32]} Rf8 {[%emt 0:14:36]} 18. Ba4 {[%emt 0:01:12]} Be7 {[%emt 0:03:57]} 19. Bb3 {[%emt 0:03:34]} (19. Nd5 {is more complex.} Nxd5 20. exd5 Bxd5 21. Bh6) 19... Rad8 {[%emt 0:10:18]} 20. Rxd8 {[%emt 0:10:55]} (20. Bxa7 $2 b6 21. Ra1 Qxa7 $19) 20... Rxd8 {[%emt 0:08:08]} 21. Nd5 {[%emt 0:02:25]} (21. Bxa7 $2 {is the wrong capture.} b6 22. Nb5 Qc5 $19) 21... Nxd5 {[%emt 0:12:50]} 22. exd5 {[%emt 0:00:04]} Bxd5 {[%emt 0:00:04]} 23. Bxd5 {[%emt 0:00:03]} Rxd5 {[%emt 0:00:05]} 24. Qf3 {[%emt 0:00:03]} (24. Rxf7 $5 Rd1+ $8 25. Bg1 $11) 24... Rd8 {[%emt 0:07:21]} 25. Qxf7 {[%emt 0:00:32]} h6 {[%emt 0:00:15] Dodges Bg5. Hoping for ...Rf8.} 26. Qe6 {[%emt 0:03:45][%cal Oe3h6]} (26. Bxa7 $2 {perishes.} Rf8 27. Qxf8+ Bxf8 28. Rxf8+ Kh7 $19) 26... Qd6 {[%emt 0:06:28]} 27. Qxd6 {[%emt 0:00:26]} Rxd6 $11 {[%emt 0:00:06][%mdl 4096] Endgame. KRB-KRB} 28. Kg1 {[%emt 0:02:19]} Bg5 {[%emt 0:15:45]} 29. Bxg5 {[%emt 0:06:05]} hxg5 {[%emt 0:00:03] KR-KR} 30. h3 {[%emt 0:00:35]} e4 {[%emt 0:01:20]} 31. Re1 {[%emt 0:05:08]} Rd2 {[%emt 0:00:21]} 32. Rxe4 {[%emt 0:00:02]} Rxc2 {[%emt 0:00:05]} 33. Rb4 {[%emt 0:00:01]} b6 {[%emt 0:00:18]} 34. Kh2 {[%emt 0:00:06]} Kh7 {[%emt 0:00:55]} 35. a4 {[%emt 0:00:05]} Kg6 {[%emt 0:00:33]} 36. Kg3 {[%emt 0:00:05]} Kf5 {[%emt 0:00:51]} 37. Kf3 {[%emt 0:00:14]} g6 {[%emt 0:00:26]} 38. Rb5+ {[%emt 0:00:50]} Kf6 {[%emt 0:00:11]} 39. b4 {[%emt 0:01:06]} Rc4 {[%emt 0:00:37]} 40. a5 {[%emt 0:00:12]} bxa5 {[%emt 0:00:44]} 41. bxa5 {[%emt 0:00:17]} Ra4 {[%emt 0:00:15]} 42. Rc5 {[%emt 0:00:04]} Ra3+ {[%emt 0:00:45]} 43. Kg4 {[%emt 0:01:50]} Ra4+ {[%emt 0:00:10]} 44. Kg3 {[%emt 0:00:03]} Ra3+ {[%emt 0:00:49]} 45. Kh2 {[%emt 0:00:01]} Ra2 {[%emt 0:00:34]} 46. Rc6+ {[%emt 0:00:20]} Kf5 {[%emt 0:00:06]} 47. Ra6 {[%emt 0:00:03]} g4 {[%emt 0:00:34]} 48. h4 {[%emt 0:01:18]} Ra3 $1 {[%emt 0:00:39]} 49. Rxa7 {[%emt 0:00:18]} Kf6 {[%emt 0:00:40]} 50. a6 {[%emt 0:00:09]} Ke6 $2 {[%emt 0:00:28]} (50... Ke5 $11) 51. Ra8 $18 {[%emt 0:02:34] a7 is the strong threat.} Kf6 {[%emt 0:00:10]} (51... Kf7 $16) 52. a7 $11 {[%emt 0:03:43]} Kg7 {[%emt 0:00:06] [#] Repels Rf8} 53. g3 $2 {[%emt 0:00:03]} (53. Kg1 $1 $18) 53... Kh7 {[%emt 0:01:06] The position is equal.} 54. Kg2 {[%emt 0:00:03]} Ra2+ {[%emt 0:00:31]} 55. Kf1 {[%emt 0:00:01]} Kg7 {[%emt 0:00:30]} 56. Ke1 {[%emt 0:00:00]} Kh7 {[%emt 0:00:36]} 57. Kd1 {[%emt 0:00:02]} Kg7 {[%emt 0:00:03]} 58. Kc1 {[%emt 0:00:01]} Kh7 {[%emt 0:00:45]} 59. Kb1 {[%emt 0:00:00]} Ra6 {[%emt 0:00:31]} 60. Kb2 {[%emt 0:00:03]} Kg7 {[%emt 0:00:20]} 61. Kb3 {[%emt 0:00:01]} Ra1 {[%emt 0:00:23]} 62. Kc4 {[%emt 0:00:02]} Ra4+ {[%emt 0:00:40]} 63. Kc5 {[%emt 0:00:19] Strongly threatening Kb6.} Ra1 {[%emt 0:00:10]} 64. Kd6 {[%emt 0:00:06]} Ra2 {[%emt 0:00:46]} 65. Kd5 {[%emt 0:00:10]} Ra4 {[%emt 0:00:52]} 66. Ke5 {[%emt 0:00:04]} Kh7 {[%emt 0:00:32]} 67. Kf6 {[%emt 0:00:14] Black must now prevent Kg5.} Ra5 $1 {[%emt 0:00:29]} 68. Rb8 {[%emt 0:01:44]} (68. Rc8 {simplifies} Rxa7 69. Kg5 Ra5+ 70. Kxg4 Ra4+ 71. Kh3) 68... Ra6+ {[%emt 0:00:32]} 69. Kg5 {[%emt 0:00:05]} Ra5+ {[%emt 0:00:26]} 70. Kxg4 {[%emt 0:00:05]} Rxa7 {[%emt 0:00:04]} 71. Rb6 {[%emt 0:00:24]} Kg7 {[%emt 0:00:28]} 72. Rd6 {[%emt 0:00:12]} Rb7 {[%emt 0:00:56]} 73. Kf4 {[%emt 0:00:04]} Rb4+ {[%emt 0:00:22]} 74. Ke5 {[%emt 0:00:07]} Rb5+ {[%emt 0:00:41]} 75. Rd5 {[%emt 0:00:09]} Rxd5+ {[%emt 0:00:29]} 76. Kxd5 {[%emt 0:00:03] KPP-KP} g5 $1 {[%emt 0:00:10][%cal Bg6g5,Bg5g4][%mdl 32]} 77. h5 {[%emt 0:00:40]} (77. hxg5 $5 Kg6 $8 78. g4 $11) 77... g4 $1 {[%emt 0:00:03]} 78. Ke5 {[%emt 0:00:07] Threatening mate with Kf5.} Kh6 {[%emt 0:00:03]} 79. Kf4 {[%emt 0:00:03]} Kxh5 {[%emt 0:00:02] KP-KP} 80. Kf5 {[%emt 0:00:04]} Kh6 {[%emt 0:00:03]} 81. Kxg4 {[%emt 0:00:02] Kf5 would kill now. KP-K} Kg6 {[%emt 0:00:07]} 82. Kf4 {[%emt 0:00:12] Intending Kg4 and mate.} Kf6 {[%emt 0:00:14]} 83. g4 {[%emt 0:00:01][%cal Bg3g4,Bg4g5,Bg5g6,Bg6g7][%mdl 32]} Kg6 {[%emt 0:00:12]} 84. g5 {[%emt 0:00:02]} Kg7 {[%emt 0:01:14]} 85. Kf5 {[%emt 0:00:02]} Kf7 {[%emt 0:00:09]} 86. g6+ {[%emt 0:00:01]} Kg7 {[%emt 0:00:14]} 87. Kg5 {[%emt 0:00:01]} Kg8 {[%emt 0:01:06]} 88. Kh6 {[%emt 0:00:03]} Kh8 {[%emt 0:00:04]} 89. g7+ {[%emt 0:00:02]} Kg8 {[%emt 0:00:02]} 90. Kg6 {Weighted Error Value: White=0.10 (very precise) /Black=0.08 (flawless) .  Loses game:     	---       	Black=1      Missed win:     	White=1     	---        Mistake:       	---       	Black=1      Inaccurate:     	White=2     	Black=1      OK:         	White=47    	Black=24     Best:        	White=1     	Black=11     Strong:       	---       	Black=6} 1/2-1/2